fUSD/lending_fUSD_20240423
["ID","MTS","AMOUNT","RATE_DAILY","PERIOD"]
[323355312,1713911463858,-500.0,0.0001178,2]
[323355313,1713911463867,-573.05,0.0001178,2]
[323355314,1713911463877,-500.0,0.0001178,2]
[323355315,1713911463886,-536.54,0.0001178,2]
[323355316,1713911463896,-500.0,0.0001178,2]
[323355317,1713911463905,-500.0,0.0001178,2]
[323355318,1713911463914,-500.0,0.0001178,2]
[323355319,1713911463923,-500.0,0.0001178,2]
[323355320,1713911463934,-500.0,0.0001178,2]
[323355321,1713911463943,-559.0,0.0001178,2]
[323355322,1713911463952,-500.0,0.0001178,2]
[323355323,1713911463961,-500.0,0.0001178,2]
[323355324,1713911463970,-500.0,0.0001178,2]
[323355325,1713911463980,-500.0,0.0001178,2]
[323355326,1713911463991,-559.06,0.0001178,2]
[323355327,1713911464000,-500.0,0.0001178,2]
[323355328,1713911464009,-500.0,0.0001178,2]
[323355329,1713911464019,-500.0,0.0001178,2]
[323355330,1713911464029,-500.0,0.0001178,2]
[323355331,1713911464039,-500.0,0.0001178,2]
[323355332,1713911464048,-157.56,0.0001178,2]
[323355333,1713911464058,-710.86,0.0001178,2]
[323355334,1713911464068,-500.0,0.0001178,2]
[323355335,1713911464077,-500.0,0.0001178,2]
[323355336,1713911464087,-500.0,0.0001178,2]
[323355337,1713911464099,-500.0,0.0001178,2]
[323355338,1713911464108,-500.0,0.0001178,2]
[323355339,1713911464117,-500.0,0.0001178,2]
[323355340,1713911464126,-500.0,0.0001178,2]
[323355341,1713911464136,-500.0,0.0001178,2]
[323355342,1713911464145,-614.5,0.0001178,2]
[323355343,1713911464154,-851.18,0.0001178,2]
[323355344,1713911464163,-525.79,0.0001178,2]
[323355345,1713911464173,-255.19,0.0001178,2]
[323355346,1713911464182,-501.0,0.0001178,2]
[323355347,1713911464191,-649.77,0.0001178,2]
[323355348,1713911464201,-500.0,0.0001178,2]
[323355349,1713911464211,-500.0,0.0001178,2]
[323355350,1713911464220,-500.0,0.0001178,2]
[323355351,1713911464230,-500.0,0.0001178,2]
[323355352,1713911464239,-500.0,0.0001178,2]
[323355353,1713911464248,-500.0,0.0001178,2]
[323355354,1713911464258,-500.0,0.0001178,2]
[323355355,1713911464268,-735.82,0.0001178,2]
[323355356,1713911464277,-500.0,0.0001178,2]
[323355357,1713911464287,-560.41,0.0001178,2]
[323355358,1713911464296,-500.0,0.0001178,2]
[323355359,1713911464306,-500.0,0.0001178,2]
[323355360,1713911464316,-500.0,0.0001178,2]
[323355361,1713911464325,-500.0,0.0001178,2]
[323355362,1713911464335,-500.0,0.0001178,2]
[323355363,1713911464345,-500.0,0.0001178,2]
[323355364,1713911464355,-500.0,0.0001178,2]
[323355365,1713911464364,-500.0,0.0001178,2]
[323355366,1713911464373,-500.0,0.0001178,2]
[323355367,1713911464383,-500.0,0.0001178,2]
[323355368,1713911464392,-500.0,0.0001178,2]
[323355369,1713911464402,-500.0,0.0001178,2]
[323355370,1713911464412,-500.0,0.0001178,2]
[323355371,1713911464421,-500.0,0.0001178,2]
[323355372,1713911464431,-549.81659169,0.0001178,2]
[323355373,1713911464441,-500.0,0.0001178,2]
[323355374,1713911464450,-399.45,0.0001178,2]
[323355375,1713911464460,-500.0,0.0001178,2]
[323355376,1713911464469,-500.0,0.0001178,2]
[323355377,1713911464478,-500.0,0.0001178,2]
[323355378,1713911464488,-633.94,0.0001178,2]
[323355379,1713911464497,-560.97,0.0001178,2]
[323355380,1713911464506,-643.17,0.0001178,2]
[323355381,1713911464516,-755.83,0.0001178,2]
[323355382,1713911464525,-605.85,0.0001178,2]
[323355383,1713911464534,-500.0,0.0001178,2]
[323355384,1713911464543,-500.0,0.0001178,2]
[323355385,1713911464552,-500.0,0.0001178,2]
[323355386,1713911464562,-241.98,0.0001178,2]
[323355387,1713911464571,-614.41,0.0001178,2]
[323355388,1713911464581,-179.52,0.0001178,2]
[323355389,1713911464593,-533.6,0.0001178,2]
[323355390,1713911464602,-500.0,0.0001178,2]
[323355391,1713911464614,-500.0,0.0001178,2]
[323355392,1713911464624,-539.16,0.0001178,2]
[323355393,1713911464633,-500.0,0.0001178,2]
[323355394,1713911464642,-500.0,0.0001178,2]
[323355395,1713911464653,-500.0,0.0001178,2]
[323355396,1713911464663,-500.0,0.0001178,2]
[323355397,1713911464672,-690.34,0.0001178,2]
[323355398,1713911464681,-777.41,0.0001178,2]
[323355399,1713911464691,-500.0,0.0001178,2]
[323355400,1713911464701,-500.0,0.0001178,2]
[323355401,1713911464711,-500.0,0.0001178,2]
[323355402,1713911464720,-500.0,0.0001178,2]
[323355403,1713911464729,-660.91,0.0001178,2]
[323355404,1713911464739,-569.39,0.0001178,2]
[323355405,1713911464749,-500.0,0.0001178,2]
[323355406,1713911464759,-629.0,0.0001178,2]
[323355407,1713911464768,-638.29,0.0001178,2]
[323355408,1713911464778,-500.0,0.0001178,2]
[323355409,1713911464787,-500.1,0.0001178,2]
[323355410,1713911464796,-500.0,0.0001178,2]
[323355411,1713911464806,-500.0,0.0001178,2]
[323355412,1713911464815,-500.0,0.0001178,2]
[323355413,1713911464825,-500.0,0.0001178,2]
[323355414,1713911464834,-500.0,0.0001178,2]
[323355415,1713911464846,-500.0,0.0001178,2]
[323355416,1713911464855,-500.0,0.0001178,2]
[323355417,1713911464865,-500.0,0.0001178,2]
[323355418,1713911464874,-842.1,0.0001178,2]
[323355419,1713911464884,-500.0,0.0001178,2]
[323355420,1713911464893,-500.0,0.0001178,2]
[323355421,1713911464902,-500.0,0.0001178,2]
[323355422,1713911464911,-500.0,0.0001178,2]
[323355423,1713911464920,-500.0,0.0001178,2]
[323355424,1713911464929,-500.0,0.0001178,2]
[323355425,1713911464939,-500.0,0.0001178,2]
[323355426,1713911464948,-701.43,0.0001178,2]
[323355427,1713911464957,-562.67,0.0001178,2]
[323355428,1713911464967,-500.0,0.0001178,2]
[323355429,1713911464976,-500.0,0.0001178,2]
[323355430,1713911464985,-220.84,0.0001178,2]
[323355431,1713911464996,-535.48,0.0001178,2]
[323355432,1713911465005,-200.8,0.0001178,2]
[323355433,1713911465015,-500.0,0.0001178,2]
[323355434,1713911465024,-569.5,0.0001178,2]
[323355435,1713911465034,-500.0,0.0001178,2]
[323355436,1713911465044,-500.0,0.0001178,2]
[323355437,1713911465054,-714.74,0.0001178,2]
[323355438,1713911465064,-580.72,0.0001178,2]
[323355439,1713911465074,-500.0,0.0001178,2]
[323355440,1713911465084,-500.0,0.0001178,2]
[323355441,1713911465096,-564.61,0.0001178,2]
[323355442,1713911465106,-599.66,0.0001178,2]
[323355443,1713911465117,-500.0,0.0001178,2]
[323355444,1713911465127,-761.53,0.0001178,2]
[323355445,1713911465137,-500.0,0.0001178,2]
[323355446,1713911465147,-500.0,0.0001178,2]
[323355447,1713911465158,-500.0,0.0001178,2]
[323355448,1713911465169,-500.0,0.0001178,2]
[323355449,1713911465179,-500.0,0.0001178,2]
[323355450,1713911465190,-651.78,0.0001178,2]
[323355451,1713911465200,-500.0,0.0001178,2]
[323355452,1713911465211,-500.0,0.0001178,2]
[323355453,1713911465221,-874.99,0.0001178,2]
[323355454,1713911465231,-727.47,0.0001178,2]
[323355455,1713911465242,-607.09,0.0001178,2]
[323355456,1713911465252,-500.0,0.0001178,2]
[323355457,1713911465263,-500.0,0.0001178,2]
[323355458,1713911465273,-500.0,0.0001178,2]
[323355459,1713911465284,-805.58,0.0001178,2]
[323355460,1713911465294,-748.61,0.0001178,2]
[323355461,1713911465305,-500.0,0.0001178,2]
[323355462,1713911465315,-670.8,0.0001178,2]
[323355463,1713911465325,-500.0,0.0001178,2]
[323355464,1713911465335,-883.26,0.0001178,2]
[323355465,1713911465348,-500.0,0.0001178,2]
[323355466,1713911465358,-500.0,0.0001178,2]
[323355467,1713911465368,-589.11,0.0001178,2]
[323355468,1713911465379,-500.0,0.0001178,2]
[323355469,1713911465390,-500.0,0.0001178,2]
[323355470,1713911465400,-500.0,0.0001178,2]
[323355471,1713911465410,-753.29,0.0001178,2]
[323355472,1713911465420,-584.92,0.0001178,2]
[323355473,1713911465430,-500.0,0.0001178,2]
[323355474,1713911465440,-500.0,0.0001178,2]
[323355475,1713911465450,-500.0,0.0001178,2]
[323355476,1713911465460,-500.0,0.0001178,2]
[323355477,1713911465469,-500.0,0.0001178,2]
[323355478,1713911465479,-595.34,0.0001178,2]
[323355479,1713911465488,-712.53,0.0001178,2]
[323355480,1713911465498,-500.0,0.0001178,2]
[323355481,1713911465507,-500.0,0.0001178,2]
[323355482,1713911465517,-527.26,0.0001178,2]
[323355483,1713911465527,-500.0,0.0001178,2]
[323355484,1713911465536,-500.0,0.0001178,2]
[323355485,1713911465546,-711.68,0.0001178,2]
[323355486,1713911465556,-538.67,0.0001178,2]
[323355487,1713911465565,-500.0,0.0001178,2]
[323355488,1713911465575,-500.0,0.0001178,2]
[323355489,1713911465584,-559.52,0.0001178,2]
[323355490,1713911465595,-630.35,0.0001178,2]
[323355491,1713911465605,-500.0,0.0001178,2]
[323355492,1713911465618,-500.0,0.0001178,2]
[323355493,1713911465628,-500.0,0.0001178,2]
[323355494,1713911465637,-591.67,0.0001178,2]
[323355495,1713911465647,-500.0,0.0001178,2]
[323355496,1713911465657,-500.0,0.0001178,2]
[323355497,1713911465666,-711.27,0.0001178,2]
[323355498,1713911465676,-720.29,0.0001178,2]
[323355499,1713911465687,-500.0,0.0001178,2]
[323355500,1713911465697,-500.0,0.0001178,2]
[323355501,1713911465707,-500.0,0.0001178,2]
[323355502,1713911465717,-500.0,0.0001178,2]
[323355503,1713911465726,-500.0,0.0001178,2]
[323355504,1713911465736,-500.0,0.0001178,2]
[323355505,1713911465889,-500.0,0.0001178,2]
[323355506,1713911465900,-500.0,0.0001178,2]
[323355507,1713911465909,-500.0,0.0001178,2]
[323355508,1713911465918,-859.67,0.0001178,2]
[323355509,1713911465928,-500.0,0.0001178,2]
[323355510,1713911465951,-500.0,0.0001178,2]
[323355511,1713911465974,-522.07,0.0001178,2]
[323355512,1713911465984,-500.0,0.0001178,2]
[323355513,1713911465994,-564.6,0.0001178,2]
[323355514,1713911466003,-500.0,0.0001178,2]
[323355515,1713911466013,-500.0,0.0001178,2]
[323355516,1713911466022,-500.0,0.0001178,2]
[323355517,1713911466032,-826.14,0.0001178,2]
[323355518,1713911466042,-544.56,0.0001178,2]
[323355519,1713911466051,-500.0,0.0001178,2]
[323355520,1713911466061,-500.0,0.0001178,2]
[323355521,1713911466071,-500.0,0.0001178,2]
[323355522,1713911466081,-603.92,0.0001178,2]
[323355523,1713911466091,-581.38,0.0001178,2]
[323355524,1713911466103,-640.47,0.0001178,2]
[323355525,1713911466112,-578.77,0.0001178,2]
[323355526,1713911466122,-500.0,0.0001178,2]
[323355527,1713911466132,-500.0,0.0001178,2]
[323355528,1713911466142,-500.0,0.0001178,2]
[323355529,1713911466151,-500.0,0.0001178,2]
[323355530,1713911466161,-500.0,0.0001178,2]
[323355531,1713911466171,-500.0,0.0001178,2]
[323355532,1713911466181,-500.0,0.0001178,2]
[323355533,1713911466191,-500.0,0.0001178,2]
[323355534,1713911466200,-718.4,0.0001178,2]
[323355535,1713911466210,-500.0,0.0001178,2]
[323355536,1713911466220,-500.0,0.0001178,2]
[323355537,1713911466229,-500.0,0.0001178,2]
[323355538,1713911466238,-500.0,0.0001178,2]
[323355539,1713911466247,-500.0,0.0001178,2]
[323355540,1713911466257,-500.0,0.0001178,2]
[323355541,1713911466267,-500.0,0.0001178,2]
[323355542,1713911466276,-636.79,0.0001178,2]
[323355543,1713911466286,-671.8,0.0001178,2]
[323355544,1713911466295,-500.0,0.0001178,2]
[323355545,1713911466305,-500.0,0.0001178,2]
[323355546,1713911466314,-500.0,0.0001178,2]
[323355547,1713911466324,-612.56,0.0001178,2]
[323355548,1713911466333,-500.0,0.0001178,2]
[323355549,1713911466343,-500.0,0.0001178,2]
[323355550,1713911466354,-760.48,0.0001178,2]
[323355551,1713911466363,-500.0,0.0001178,2]
[323355552,1713911466373,-690.63,0.0001178,2]
[323355553,1713911466382,-819.43,0.0001178,2]
[323355554,1713911466392,-500.0,0.0001178,2]
[323355555,1713911466402,-500.0,0.0001178,2]
[323355556,1713911466411,-500.0,0.0001178,2]
[323355557,1713911466421,-500.0,0.0001178,2]
[323355558,1713911466431,-1120.66,0.0001178,2]
[323355559,1713911466441,-500.0,0.0001178,2]
[323355560,1713911466450,-500.0,0.0001178,2]
[323355561,1713911466460,-500.0,0.0001178,2]
[323355562,1713911466469,-500.0,0.0001178,2]
[323355563,1713911466479,-500.0,0.0001178,2]
[323355564,1713911466488,-500.0,0.0001178,2]
[323355565,1713911466498,-500.0,0.0001178,2]
[323355566,1713911466507,-611.78,0.0001178,2]
[323355567,1713911466517,-500.0,0.0001178,2]
[323355568,1713911466527,-263.85,0.0001178,2]
[323355569,1713911466537,-689.76,0.0001178,2]
[323355570,1713911466546,-500.0,0.0001178,2]
[323355571,1713911466556,-552.54,0.0001178,2]
[323355572,1713911466567,-500.0,0.0001178,2]
[323355573,1713911466578,-500.0,0.0001178,2]
[323355574,1713911466588,-500.0,0.0001178,2]
[323355575,1713911466599,-813.04,0.0001178,2]
[323355576,1713911466610,-500.0,0.0001178,2]
[323355577,1713911466621,-508.89,0.0001178,2]
[323355578,1713911466631,-500.0,0.0001178,2]
[323355579,1713911466640,-500.0,0.0001178,2]
[323355580,1713911466650,-500.0,0.0001178,2]
[323355581,1713911466661,-615.32,0.0001178,2]
[323355582,1713911466670,-500.0,0.0001178,2]
[323355583,1713911466681,-500.0,0.0001178,2]
[323355584,1713911466692,-615.81,0.0001178,2]
[323355585,1713911466702,-500.0,0.0001178,2]
[323355586,1713911466711,-500.0,0.0001178,2]
[323355587,1713911466720,-657.5,0.0001178,2]
[323355588,1713911466731,-500.0,0.0001178,2]
[323355589,1713911466740,-349.8,0.0001178,2]
[323355590,1713911466749,-809.84,0.0001178,2]
[323355591,1713911466759,-500.0,0.0001178,2]
[323355592,1713911466768,-500.0,0.0001178,2]
[323355593,1713911466777,-723.02,0.0001178,2]
[323355594,1713911466786,-538.09,0.0001178,2]
[323355595,1713911466795,-500.0,0.0001178,2]
[323355596,1713911466804,-500.0,0.0001178,2]
[323355597,1713911466814,-500.0,0.0001178,2]
[323355598,1713911466823,-754.92,0.0001178,2]
[323355599,1713911466833,-623.66,0.0001178,2]
[323355600,1713911466842,-608.92,0.0001178,2]
[323355601,1713911466862,-500.0,0.0001178,2]
[323355602,1713911466879,-588.64,0.0001178,2]
[323355603,1713911466898,-500.0,0.0001178,2]
[323355604,1713911466915,-500.0,0.0001178,2]
[323355605,1713911466930,-500.0,0.0001178,2]
[323355606,1713911466947,-500.0,0.0001178,2]
[323355607,1713911466964,-500.0,0.0001178,2]
[323355608,1713911466982,-500.0,0.0001178,2]
[323355609,1713911467001,-500.0,0.0001178,2]
[323355610,1713911467017,-864.73,0.0001178,2]
[323355611,1713911467034,-500.0,0.0001178,2]
[323355612,1713911467054,-181.17,0.0001178,2]
[323355613,1713911467069,-558.04,0.0001178,2]
[323355614,1713911467082,-500.0,0.0001178,2]
[323355615,1713911467098,-500.0,0.0001178,2]
[323355616,1713911467116,-500.0,0.0001178,2]
[323355617,1713911467128,-793.86,0.0001178,2]
[323355618,1713911467144,-1163.1,0.0001178,2]
[323355619,1713911467159,-500.0,0.0001178,2]
[323355620,1713911467174,-500.0,0.0001178,2]
[323355621,1713911467189,-500.0,0.0001178,2]
[323355622,1713911467205,-781.1,0.0001178,2]
[323355623,1713911467220,-722.28,0.0001178,2]
[323355624,1713911467236,-607.45,0.0001178,2]
[323355625,1713911467251,-603.49,0.0001178,2]
[323355626,1713911467266,-257.63,0.0001178,2]
[323355627,1713911467280,-500.0,0.0001178,2]
[323355628,1713911467295,-500.0,0.0001178,2]
[323355629,1713911467310,-500.0,0.0001178,2]
[323355630,1713911467324,-900.43,0.0001178,2]
[323355631,1713911467339,-500.0,0.0001178,2]
[323355632,1713911467354,-500.0,0.0001178,2]
[323355633,1713911467368,-959.57,0.0001178,2]
[323355634,1713911467383,-500.0,0.0001178,2]
[323355635,1713911467398,-500.0,0.0001178,2]
[323355636,1713911467414,-832.71,0.0001178,2]
[323355637,1713911467429,-779.76,0.0001178,2]
[323355638,1713911467444,-500.0,0.0001178,2]
[323355639,1713911467458,-500.0,0.0001178,2]
[323355640,1713911467472,-524.17,0.0001178,2]
[323355641,1713911467487,-500.0,0.0001178,2]
[323355642,1713911467501,-506.08,0.0001178,2]
[323355643,1713911467514,-500.0,0.0001178,2]
[323355644,1713911467529,-850.09,0.0001178,2]
[323355645,1713911467547,-500.0,0.0001178,2]
[323355646,1713911467561,-500.0,0.0001178,2]
[323355647,1713911467576,-500.0,0.0001178,2]
[323355648,1713911467591,-574.71,0.0001178,2]
[323355649,1713911467606,-1818.13,0.0001178,2]
[323355650,1713911467625,-538.96,0.0001178,2]
[323355651,1713911467640,-500.0,0.0001178,2]
[323355652,1713911467655,-500.0,0.0001178,2]
[323355653,1713911467672,-500.0,0.0001178,2]
[323355654,1713911467686,-544.02,0.0001178,2]
[323355655,1713911467702,-500.0,0.0001178,2]
[323355656,1713911467717,-500.0,0.0001178,2]
[323355657,1713911467732,-500.0,0.0001178,2]
[323355658,1713911467747,-500.0,0.0001178,2]
[323355659,1713911467763,-503.36692324,0.0001178,2]
[323355660,1713911467778,-926.84,0.0001178,2]
[323355661,1713911467793,-518.0,0.0001178,2]
[323355662,1713911467808,-575.89,0.0001178,2]
[323355663,1713911467823,-500.0,0.0001178,2]
[323355664,1713911467838,-500.0,0.0001178,2]
[323355665,1713911467853,-500.0,0.0001178,2]
[323355666,1713911467869,-571.09,0.0001178,2]
[323355667,1713911467883,-652.79,0.0001178,2]
[323355668,1713911467898,-500.0,0.0001178,2]
[323355669,1713911467912,-545.49,0.0001178,2]
[323355670,1713911467928,-500.0,0.0001178,2]
[323355671,1713911467941,-500.0,0.0001178,2]
[323355672,1713911467955,-525.42,0.0001178,2]
[323355673,1713911467970,-269.77936907,0.0001178,2]
[323355674,1713911467983,-500.0,0.0001178,2]
[323355675,1713911467999,-948.71,0.0001178,2]
[323355676,1713911468014,-500.0,0.0001178,2]
[323355677,1713911468029,-500.0,0.0001178,2]
[323355678,1713911468044,-500.0,0.0001178,2]
[323355679,1713911468059,-621.44,0.0001178,2]
[323355680,1713911468074,-500.0,0.0001178,2]
[323355681,1713911468089,-535.31,0.0001178,2]
[323355682,1713911468104,-769.52,0.0001178,2]
[323355683,1713911468119,-500.0,0.0001178,2]
[323355684,1713911468133,-500.0,0.0001178,2]
[323355685,1713911468148,-500.0,0.0001178,2]
[323355686,1713911468163,-500.0,0.0001178,2]
[323355687,1713911468177,-523.96,0.0001178,2]
[323355688,1713911468192,-500.0,0.0001178,2]
[323355689,1713911468207,-658.98,0.0001178,2]
[323355690,1713911468222,-738.55194264,0.00011786,2]
[323355691,1713911468238,-738.55194264,0.00011972,2]
[323355692,1713911468255,-159.36,0.00012033,2]
[323355693,1713911468272,-155.0,0.00012051,2]
[323355694,1713911468282,-325.58773117,0.00012052,2]
[323355695,1713911468497,-500.0,0.00012054,2]
[323355696,1713911468521,-500.0,0.00012054,2]
[323355697,1713911468530,-500.0,0.00012054,2]
[323355698,1713911468540,-500.0,0.00012054,2]
[323355699,1713911468550,-500.0,0.00012054,2]
[323355700,1713911468558,-500.0,0.00012054,2]
[323355701,1713911468568,-500.0,0.00012054,2]
[323355702,1713911468578,-500.0,0.00012054,2]
[323355703,1713911468587,-500.0,0.00012054,2]
[323355704,1713911468597,-500.0,0.00012054,2]
[323355705,1713911468609,-531.56,0.00012054,2]
[323355706,1713911468622,-500.0,0.00012054,2]
[323355707,1713911468631,-500.0,0.00012054,2]
[323355708,1713911468640,-500.0,0.00012054,2]
[323355709,1713911468650,-500.0,0.00012054,2]
[323355710,1713911468660,-516.99,0.00012054,2]
[323355711,1713911468670,-500.0,0.00012054,2]
[323355712,1713911468679,-500.0,0.00012054,2]
[323355713,1713911468688,-500.0,0.00012054,2]
[323355714,1713911468697,-500.0,0.00012054,2]
[323355715,1713911468706,-500.0,0.00012054,2]
[323355716,1713911468715,-500.0,0.00012054,2]
[323355717,1713911468724,-500.0,0.00012054,2]
[323355718,1713911468733,-500.0,0.00012054,2]
[323355719,1713911468743,-150.88,0.00012054,2]
[323355720,1713911468752,-500.0,0.00012054,2]
[323355721,1713911468761,-500.0,0.00012054,2]
[323355722,1713911468770,-500.0,0.00012054,2]
[323355723,1713911468780,-500.0,0.00012054,2]
[323355724,1713911468790,-500.0,0.00012054,2]
[323355725,1713911468799,-574.26,0.00012054,2]
[323355726,1713911468809,-500.0,0.00012054,2]
[323355727,1713911468818,-500.0,0.00012054,2]
[323355728,1713911468827,-500.0,0.00012054,2]
[323355729,1713911468836,-504.77,0.00012054,2]
[323355730,1713911468845,-500.0,0.00012054,2]
[323355731,1713911468857,-500.0,0.00012054,2]
[323355732,1713911468866,-500.0,0.00012054,2]
[323355733,1713911468875,-500.0,0.00012054,2]
[323355734,1713911468885,-510.42,0.00012054,2]
[323355735,1713911468894,-500.0,0.00012054,2]
[323355736,1713911468903,-621.11,0.00012054,2]
[323355737,1713911468912,-500.0,0.00012054,2]
[323355738,1713911468921,-500.0,0.00012054,2]
[323355739,1713911468930,-500.0,0.00012054,2]
[323355740,1713911468940,-500.0,0.00012054,2]
[323355741,1713911468949,-500.0,0.00012054,2]
[323355742,1713911468958,-524.48,0.00012054,2]
[323355743,1713911468967,-500.0,0.00012054,2]
[323355744,1713911468976,-500.0,0.00012054,2]
[323355745,1713911468985,-611.27,0.00012054,2]
[323355746,1713911468994,-571.32,0.00012054,2]
[323355747,1713911469003,-526.94,0.00012054,2]
[323355748,1713911469012,-671.93,0.00012054,2]
[323355749,1713911469022,-500.0,0.00012054,2]
[323355750,1713911469031,-150.0,0.00012054,2]
[323355751,1713911469040,-500.0,0.00012054,2]
[323355752,1713911469049,-500.0,0.00012054,2]
[323355753,1713911469058,-500.0,0.00012054,2]
[323355754,1713911469066,-500.0,0.00012054,2]
[323355755,1713911469076,-500.0,0.00012054,2]
[323355756,1713911469085,-500.0,0.00012054,2]
[323355757,1713911469094,-500.0,0.00012054,2]
[323355758,1713911469104,-500.0,0.00012054,2]
[323355759,1713911469113,-669.6,0.00012054,2]
[323355760,1713911469122,-500.0,0.00012054,2]
[323355761,1713911469131,-500.0,0.00012054,2]
[323355762,1713911469140,-500.0,0.00012054,2]
[323355763,1713911469149,-599.5,0.00012054,2]
[323355764,1713911469158,-500.0,0.00012054,2]
[323355765,1713911469168,-500.0,0.00012054,2]
[323355766,1713911469177,-500.0,0.00012054,2]
[323355767,1713911469186,-599.99859693,0.00012054,2]
[323355768,1713911469195,-500.0,0.00012054,2]
[323355769,1713911469205,-500.0,0.00012054,2]
[323355770,1713911469214,-500.0,0.00012054,2]
[323355771,1713911469223,-500.0,0.00012054,2]
[323355772,1713911469232,-500.0,0.00012054,2]
[323355773,1713911469241,-500.0,0.00012054,2]
[323355774,1713911469250,-500.0,0.00012054,2]
[323355775,1713911469260,-500.0,0.00012054,2]
[323355776,1713911469268,-500.0,0.00012054,2]
[323355777,1713911469277,-510.75,0.00012054,2]
[323355778,1713911469288,-500.0,0.00012054,2]
[323355779,1713911469297,-500.0,0.00012054,2]
[323355780,1713911469306,-500.0,0.00012054,2]
[323355781,1713911469316,-500.67,0.00012054,2]
[323355782,1713911469325,-500.0,0.00012054,2]
[323355783,1713911469334,-500.0,0.00012054,2]
[323355784,1713911469343,-646.0,0.00012054,2]
[323355785,1713911469353,-500.0,0.00012054,2]
[323355786,1713911469362,-500.0,0.00012054,2]
[323355787,1713911469372,-500.0,0.00012054,2]
[323355788,1713911469381,-500.0,0.00012054,2]
[323355789,1713911469390,-652.09,0.00012054,2]
[323355790,1713911469399,-500.0,0.00012054,2]
[323355791,1713911469408,-543.4,0.00012054,2]
[323355792,1713911469417,-500.0,0.00012054,2]
[323355793,1713911469426,-500.0,0.00012054,2]
[323355794,1713911469436,-500.0,0.00012054,2]
[323355795,1713911469445,-573.05,0.00012054,2]
[323355796,1713911469454,-500.0,0.00012054,2]
[323355797,1713911469463,-536.54,0.00012054,2]
[323355798,1713911469472,-500.0,0.00012054,2]
[323355799,1713911469481,-500.0,0.00012054,2]
[323355800,1713911469491,-500.0,0.00012054,2]
[323355801,1713911469501,-500.0,0.00012054,2]
[323355802,1713911469510,-500.0,0.00012054,2]
[323355803,1713911469520,-559.0,0.00012054,2]
[323355804,1713911469530,-500.0,0.00012054,2]
[323355805,1713911469541,-500.0,0.00012054,2]
[323355806,1713911469550,-500.0,0.00012054,2]
[323355807,1713911469559,-500.0,0.00012054,2]
[323355808,1713911469569,-559.06,0.00012054,2]
[323355809,1713911469579,-500.0,0.00012054,2]
[323355810,1713911469589,-500.0,0.00012054,2]
[323355811,1713911469598,-500.0,0.00012054,2]